Workbook

Sheet amaliati (2) (hidden)
D1: تعداد | AB1: مبلغ | AY1: محاسبه نهایی
A2: کد پرسنلی | B2: کد ملی | C2: شماره بیمه | D2: نام | E2: تعداد پایانه | G2: جمع کل دستگاه | H2: درصد بازرسی | I2: مونیتورینگ | J2: پشتیبانی | M2: ورود به نمایندگی | N2: نصب | R2: فسخ | V2: بازاریابی | Y2: تعداد تراکنش | Z2: تعداد بازرسی بالای 95 | AB2: تعداد پایانه | AD2: هزینه رفت و امد | AE2: درصد بازرسی | AF2: مونیتورینگ | AG2: پشتیبانی | AJ2: ورود به نمایندگی | AK2: نصب | AO2: فسخ | AS2: بازاریابی | AV2: تعداد تراکنش | AW2: تعداد بازرسی بین 95 تا96 | AY2: نام | AZ2: تعداد پایانه | BB2: حقوق ثابت | BC2: هزینه رفت و | BE2: مونیتورینگ | BF2: پشتیبانی | BI2: ورود به نمایندگی | BJ2: نصب | BN2: فسخ | BR2: بازاریابی | BU2: تعداد تراکنش | BV2: تعداد بازرسی بین 95 تا96 | BW2: تشویق مدیریتی | BX2: حق اولاد | BY2: حقوق | BZ2: حقوق ثابت پرسنل ستادی | CA2: مبلغ اضافه کاری | CB2: کسر حق بیمه سهم کارگر | CC2: کسر مالیات | CD2: کسر قسط | CE2: کسر مساعده | CF2: پرداخت نهایی
E3: VIP | F3: معمولی | J3: روز اول | K3: روز دوم | L3: روز سوم | N3: روز اول | O3: روز دوم | P3: روز سوم | Q3: روز چهارم | R3: روز اول | S3: روز دوم | T3: روز سوم | U3: روز چهارم | V3: معمولی | W3: VIP | X3: VVIP | AB3: VIP | AC3: معمولی | AG3: روز اول | AH3: روز دوم | AI3: روز سوم | AK3: روز اول | AL3: روز دوم | AM3: روز سوم | AN3: روز چهارم | AO3: روز اول | AP3: روز دوم | AQ3: روز سوم | AR3: روز چهارم | AS3: معمولی | AT3: VIP | AU3: VVIP | AZ3: VIP | BA3: معمولی | BC3: امد | BD3: درصد بازرسی | BF3: روز اول | BG3: روز دوم | BH3: روز سوم | BJ3: روز اول | BK3: روز دوم | BL3: روز سوم | BM3: روز چهارم | BN3: روز اول | BO3: روز دوم | BP3: روز سوم | BQ3: روز چهارم | BR3: معمولی | BS3: VIP | BT3: VVIP
D4: بهزاد اسکندری | E4: 126 | F4: 693 | G4: =SUM(E4:F4) -> 819 | H4: 0.9794 | I4: 0 | J4: 6 | K4: 0 | L4: 5 | M4: 0 | N4: 51 | O4: 0 | P4: 0 | Q4: 0 | R4: 0 | S4: 0 | T4: 0 | U4: 0 | V4: 2 | W4: 3 | X4: 3 | Y4: 135855 | Z4: 0 | AB4: 18000 | AC4: 8500 | AD4: 3500 | AE4: 1 | AF4: 12000 | AG4: 25000 | AH4: 20000 | AI4: -15000 | AJ4: 20000 | AK4: 45000 | AL4: 35000 | AM4: 25000 | AN4: -15000 | AO4: 25000 | AP4: 20000 | AQ4: 15000 | AR4: -15000 | AS4: 100000 | AT4: 300000 | AU4: 450000 | AV4: 20 | AW4: 100000 | AY4: بهزاد اسکندری | AZ4: =E4*AB4 -> 2268000 | BA4: 5890500 | BB4: =SUM(AZ4:BA4) -> 8158500 | BC4: =AD4*SUM(E4:F4) -> 2866500 | BD4: =H4 -> 0.9794 | BE4: =I4*AF4 -> 0 | BF4: 150000 | BG4: 0 | BH4: -75000 | BI4: 0 | BJ4: =AK4*N4 -> 2295000 | BK4: 0 | BL4: 0 | BM4: 0 | BN4: =R4*AO4 -> 0 | BO4: 0 | BP4: =AQ4*T4 -> 0 | BQ4: 0 | BR4: =V4*AS4 -> 200000 | BS4: 900000 | BT4: 1350000 | BU4: 2717100 | BV4: 0 | BW4: 700000 | BY4: =SUM(BB4:BC4)*BD4+SUM(BE4:BG4)-BH4+SUM(BI4:BL4)-BM4+SUM(BN4:BP4)-BQ4+SUM(BR4:BX4) -> 19184985 | BZ4: 0 | CA4: 0 | CB4: 777650 | CC4: =(BY4-20000000)*10% -> -81501.5 | CF4: =BY4-SUM(CB4:CE4) -> 18488836.5 | CG4: حق بیمه سهم کارگر واریز شد
D5: اکبر آهنگر | E5: 138 | F5: 605 | G5: =SUM(E5:F5) -> 743 | H5: 0.9876 | I5: 0 | J5: 11 | K5: 0 | L5: 10 | M5: 0 | N5: 38 | O5: 0 | P5: 0 | Q5: 0 | R5: 0 | S5: 0 | T5: 0 | U5: 0 | V5: 2 | W5: 1 | X5: 0 | Y5: 161647 | Z5: 0 | AB5: 18000 | AC5: 8500 | AD5: 3000 | AE5: 1 | AF5: 12000 | AG5: 25000 | AH5: 20000 | AI5: -15000 | AJ5: 20000 | AK5: 45000 | AL5: 35000 | AM5: 25000 | AN5: -15000 | AO5: 25000 | AP5: 20000 | AQ5: 15000 | AR5: -15000 | AS5: 100000 | AT5: 300000 | AU5: 450000 | AV5: 20 | AW5: 100000 | AY5: اکبر آهنگر | AZ5: 2484000 | BA5: 5142500 | BB5: =SUM(AZ5:BA5) -> 7626500 | BC5: 2229000 | BD5: =H5 -> 0.9876 | BE5: 0 | BF5: 275000 | BG5: 0 | BH5: -150000 | BI5: 0 | BJ5: 1710000 | BK5: 0 | BL5: 0 | BM5: 0 | BN5: 0 | BO5: 0 | BP5: 0 | BQ5: 0 | BR5: 200000 | BS5: 300000 | BT5: 0 | BU5: 3232940 | BV5: 0 | BW5: 2570069 | BX5: 929931 | BY5: =SUM(BB5:BC5)*BD5+SUM(BE5:BG5)-BH5+SUM(BI5:BL5)-BM5+SUM(BN5:BP5)-BQ5+SUM(BR5:BX5) -> 19101231.8 | BZ5: 0 | CA5: 0 | CB5: 777650 | CC5: 0 | CD5: 3000000 | CF5: =BY5-SUM(CB5:CE5) -> 15323581.8
D6: فرشاد پاشایی | E6: 145 | F6: 604 | G6: 749 | H6: 0.9510 | I6: 0 | J6: 6 | K6: 0 | L6: 15 | M6: 0 | N6: 60 | O6: 0 | P6: 0 | Q6: 0 | R6: 15 | S6: 0 | T6: 0 | U6: 0 | V6: 1 | W6: 2 | X6: 2 | Y6: 213062 | Z6: 0 | AB6: 18000 | AC6: 8500 | AD6: 3000 | AE6: 1 | AF6: 12000 | AG6: 25000 | AH6: 20000 | AI6: -15000 | AJ6: 20000 | AK6: 45000 | AL6: 35000 | AM6: 25000 | AN6: -15000 | AO6: 25000 | AP6: 20000 | AQ6: 15000 | AR6: -15000 | AS6: 100000 | AT6: 300000 | AU6: 450000 | AV6: 20 | AW6: 100000 | AY6: فرشاد پاشایی | AZ6: 2610000 | BA6: 5134000 | BB6: 7744000 | BC6: 2247000 | BD6: 0.9510 | BE6: 0 | BF6: 150000 | BG6: 0 | BH6: -225000 | BI6: 0 | BJ6: 2700000 | BK6: 0 | BL6: 0 | BM6: 0 | BN6: 375000 | BO6: 0 | BP6: 0 | BQ6: 0 | BR6: 100000 | BS6: 600000 | BT6: 900000 | BU6: 4261240 | BV6: 0 | BY6: =SUM(BB6:BC6)*BD6+SUM(BE6:BG6)-BH6+SUM(BI6:BL6)-BM6+SUM(BN6:BP6)-BQ6+SUM(BR6:BX6) -> 18812681 | BZ6: 0 | CA6: 0 | CB6: 777650 | CC6: 0 | CF6: 18035031
D7: علیرضا چکوری | E7: 157 | F7: 541 | G7: 698 | H7: 0.9517 | I7: 0 | J7: 11 | K7: 2 | L7: 19 | M7: 1 | N7: 27 | O7: 0 | P7: 0 | Q7: 0 | R7: 0 | S7: 0 | T7: 0 | U7: 0 | V7: 2 | W7: 3 | X7: 1 | Y7: 168694 | Z7: 0 | AB7: 18000 | AC7: 8500 | AD7: 3500 | AE7: 1 | AF7: 12000 | AG7: 25000 | AH7: 20000 | AI7: -15000 | AJ7: 20000 | AK7: 45000 | AL7: 35000 | AM7: 25000 | AN7: -15000 | AO7: 25000 | AP7: 20000 | AQ7: 15000 | AR7: -15000 | AS7: 100000 | AT7: 300000 | AU7: 450000 | AV7: 20 | AW7: 100000 | AY7: علیرضا چکوری | AZ7: 2826000 | BA7: 4598500 | BB7: 7424500 | BC7: 2443000 | BD7: 0.9517 | BE7: 0 | BF7: 275000 | BG7: 40000 | BH7: -285000 | BI7: 20000 | BJ7: 1215000 | BK7: 0 | BL7: 0 | BM7: 0 | BN7: 0 | BO7: 0 | BP7: 0 | BQ7: 0 | BR7: 200000 | BS7: 900000 | BT7: 450000 | BU7: 3373880 | BV7: 0 | BX7: 929931 | BY7: 17079710.75 | BZ7: 0 | CA7: 0 | CB7: 777650 | CC7: 0 | CF7: 16302060.75
D8: حسین قاسمی | E8: 115 | F8: 746 | G8: 861 | H8: 0.9347 | I8: 0 | J8: 5 | K8: 0 | L8: 0 | M8: 8 | N8: 23 | O8: 0 | P8: 0 | Q8: 0 | R8: 17 | S8: 0 | T8: 0 | U8: 0 | V8: 0 | W8: 0 | X8: 1 | Y8: 170230 | Z8: 0 | AB8: 18000 | AC8: 8500 | AD8: 3000 | AE8: 1 | AF8: 12000 | AG8: 25000 | AH8: 20000 | AI8: -15000 | AJ8: 20000 | AK8: 45000 | AL8: 35000 | AM8: 25000 | AN8: -15000 | AO8: 25000 | AP8: 20000 | AQ8: 15000 | AR8: -15000 | AS8: 100000 | AT8: 300000 | AU8: 450000 | AV8: 20 | AW8: 100000 | AY8: حسین قاسمی | AZ8: 2070000 | BA8: 6341000 | BB8: 8411000 | BC8: 2583000 | BD8: 0.9347 | BE8: 0 | BF8: 125000 | BG8: 0 | BH8: 0 | BI8: 160000 | BJ8: 1035000 | BK8: 0 | BL8: 0 | BM8: 0 | BN8: 425000 | BO8: 0 | BP8: 0 | BQ8: 0 | BR8: 0 | BS8: 0 | BT8: 450000 | BU8: 3404600 | BV8: 0 | BY8: 15875691.8 | BZ8: 0 | CA8: 0 | CB8: 777650 | CC8: 0 | CD8: 2000000 | CF8: 13098041.8
CF9: =SUM(CF4:CF8) -> 81247551.85

Sheet amaliati
A1: تعداد | AB1: مبلغ | AY1: محاسبه نهایی
A2: نام | B2: کد ملی | C2: کد پرسنلی | D2: شماره بیمه | E2: تعداد پایانه | G2: جمع کل دستگاه | H2: درصد بازرسی | I2: درصد بازرسی | J2: پشتیبانی | M2: ورود به نمایندگی | N2: نصب | R2: فسخ | V2: بازاریابی | Y2: تعداد تراکنش | Z2: تعداد بازرسی بالای 95 | AB2: تعداد پایانه | AD2: هزینه رفت و امد | AE2: درصد بازرسی | AF2: مونیتورینگ | AG2: پشتیبانی | AJ2: ورود به نمایندگی | AK2: نصب | AO2: فسخ | AS2: بازاریابی | AV2: تعداد تراکنش | AW2: تعداد بازرسی بین 95 تا96 | AY2: نام | AZ2: تعداد پایانه | BB2: حقوق ثابت | BC2: هزینه رفت و | BE2: مونیتورینگ | BF2: پشتیبانی | BI2: ورود به نمایندگی | BJ2: نصب | BN2: فسخ | BR2: بازاریابی | BU2: تعداد تراکنش | BV2: تعداد بازرسی بین 95 تا96 | BW2: تشویق مدیریتی | BX2: حق اولاد | BY2: حقوق | BZ2: کسر حق بیمه سهم کارگر | CA2: کسر مالیات | CB2: کسر قسط | CC2: کسر مساعده | CD2: پرداخت نهایی | CE2: مانده از فیش قبل | CG2: مرخصی ساعتی (دقیقه) | CH2: روزکارکرد | CI2: مرخصی روزانه | CJ2: مرخصی بدون حقوق | CK2: تعداد مانیتورنیگ | CL2: مانده از فیش قبل
E3: VIP | F3: معمولی | J3: روز اول | K3: روز دوم | L3: روز سوم | N3: روز اول | O3: روز دوم | P3: روز سوم | Q3: روز چهارم | R3: روز اول | S3: روز دوم | T3: روز سوم | U3: روز چهارم | V3: معمولی | W3: VIP | X3: VVIP | AB3: VIP | AC3: معمولی | AG3: روز اول | AH3: روز دوم | AI3: روز سوم | AK3: روز اول | AL3: روز دوم | AM3: روز سوم | AN3: روز چهارم | AO3: روز اول | AP3: روز دوم | AQ3: روز سوم | AR3: روز چهارم | AS3: معمولی | AT3: VIP | AU3: VVIP | AZ3: VIP | BA3: معمولی | BC3: امد | BD3: درصد بازرسی | BF3: روز اول | BG3: روز دوم | BH3: روز سوم | BJ3: روز اول | BK3: روز دوم | BL3: روز سوم | BM3: روز چهارم | BN3: روز اول | BO3: روز دوم | BP3: روز سوم | BQ3: روز چهارم | BR3: معمولی | BS3: VIP | BT3: VVIP
A4: بهزاد اسکندری | B4: 123 | C4: 78 | D4: 57 | E4: 129 | F4: 686 | G4: =SUM(E4:F4) -> 815 | H4: 0.968 | I4: =IF(H4>=0.95,1,H4) -> 1 | J4: 11 | K4: 8 | L4: 6 | M4: 0 | N4: 28 | O4: 0 | P4: 0 | Q4: 0 | R4: 18 | S4: 0 | T4: 0 | U4: 0 | V4: 3 | W4: 2 | X4: 0 | Y4: 126491 | Z4: =(H4*G4)-(G4*95/100) -> 14.67 | AB4: 18000 | AC4: 11500 | AD4: 6200 | AE4: 1 | AF4: 12000 | AG4: 25000 | AH4: 20000 | AI4: -15000 | AJ4: 20000 | AK4: 45000 | AL4: 35000 | AM4: 25000 | AN4: -15000 | AO4: 25000 | AP4: 20000 | AQ4: 15000 | AR4: -15000 | AS4: 100000 | AT4: 300000 | AU4: 450000 | AV4: 20 | AW4: 100000 | AY4: بهزاد اسکندری | AZ4: =E4*AB4 -> 2322000 | BA4: =F4*AC4 -> 7889000 | BB4: =SUM(AZ4:BA4)*I4 -> 10211000 | BC4: =AD4*SUM(E4:F4) -> 5053000 | BD4: =I4 -> 1 | BE4: =CK4*AF4 -> 12000 | BF4: =J4*AG4 -> 275000 | BG4: =K4*AH4 -> 160000 | BH4: =L4*AI4 -> -90000 | BI4: =M4*AJ4 -> 0 | BJ4: =AK4*N4 -> 1260000 | BK4: =AL4*O4 -> 0 | BL4: =AM4*P4 -> 0 | BM4: =AN4*Q4 -> 0 | BN4: =R4*AO4 -> 450000 | BO4: =S4*AP4 -> 0 | BP4: =AQ4*T4 -> 0 | BQ4: =AR4*U4 -> 0 | BR4: =V4*AS4 -> 300000 | BS4: =W4*AT4 -> 600000 | BT4: =X4*AU4 -> 0 | BU4: =Y4*AV4 -> 2529820 | BV4: =Z4*AW4 -> 1467000 | BW4: 0 | BX4: 0 | BY4: =((BB4+BC4)*BD4)+BE4+BF4+BG4+BH4+BI4+BJ4+BK4+BL4+BM4+BN4+BO4+BP4+BQ4+BR4+BS4+BT4+BU4+BV4+BW4+BX4 -> 22227820 | BZ4: 777650 | CA4: =IF((BY4-BX4)>=20000000,(BY4-20000000)*10%,0) -> 222782 | CD4: =BY4-BZ4-CA4-CB4-CC4 -> 21227388 | CF4: حق بیمه سهم کارگر واریز شد | CG4: 1 | CH4: 2 | CI4: 3 | CJ4: 4 | CK4: 1
A5: اکبر آهنگر | E5: 129 | F5: 607 | G5: =SUM(E5:F5) -> 736 | H5: 0.9538 | I5: =IF(H5>=0.95,1,H5) -> 1 | J5: 24 | K5: 2 | L5: 8 | M5: 0 | N5: 25 | O5: 0 | P5: 0 | Q5: 0 | R5: 17 | S5: 0 | T5: 0 | U5: 0 | V5: 2 | W5: 0 | X5: 2 | Y5: 159778 | Z5: =(H5*G5)-(G5*95/100) -> 2.7968 | AB5: 18000 | AC5: 11500 | AD5: 6800 | AE5: 1 | AF5: 12000 | AG5: 25000 | AH5: 20000 | AI5: -15000 | AJ5: 20000 | AK5: 45000 | AL5: 35000 | AM5: 25000 | AN5: -15000 | AO5: 25000 | AP5: 20000 | AQ5: 15000 | AR5: -15000 | AS5: 100000 | AT5: 300000 | AU5: 450000 | AV5: 20 | AW5: 100000 | AY5: اکبر آهنگر | AZ5: 2322000 | BA5: 6980500 | BB5: =SUM(AZ5:BA5)*I5 -> 9302500 | BC5: 5004800 | BD5: =I5 -> 1 | BE5: =CK5*AF5 -> 0 | BF5: 600000 | BG5: 40000 | BH5: -120000 | BI5: 0 | BJ5: 1125000 | BK5: 0 | BL5: 0 | BM5: 0 | BN5: 425000 | BO5: 0 | BP5: 0 | BQ5: 0 | BR5: 200000 | BS5: 0 | BT5: 900000 | BU5: 3195560 | BV5: 279680 | BY5: =((BB5+BC5)*BD5)+BE5+BF5+BG5+BH5+BI5+BJ5+BK5+BL5+BM5+BN5+BO5+BP5+BQ5+BR5+BS5+BT5+BU5+BV5+BW5+BX5 -> 20952540 | BZ5: 777650 | CA5: =IF((BY5-BX5)>=20000000,(BY5-20000000)*10%,0) -> 95254 | CB5: 3000000 | CD5: =BY5-BZ5-CA5-CB5-CC5 -> 17079636
A6: فرشاد پاشایی | E6: 148 | F6: 589 | G6: 737 | H6: 0.9634 | I6: 1 | J6: 16 | K6: 4 | L6: 9 | M6: 2 | N6: 41 | O6: 0 | P6: 0 | Q6: 0 | R6: 22 | S6: 0 | T6: 0 | U6: 0 | V6: 5 | W6: 3 | X6: 3 | Y6: 202361 | Z6: 9.8758 | AB6: 18000 | AC6: 11500 | AD6: 7500 | AE6: 1 | AF6: 12000 | AG6: 25000 | AH6: 20000 | AI6: -15000 | AJ6: 20000 | AK6: 45000 | AL6: 35000 | AM6: 25000 | AN6: -15000 | AO6: 25000 | AP6: 20000 | AQ6: 15000 | AR6: -15000 | AS6: 100000 | AT6: 300000 | AU6: 450000 | AV6: 20 | AW6: 100000 | AY6: فرشاد پاشایی | AZ6: 2664000 | BA6: 6773500 | BB6: 9437500 | BC6: 5527500 | BD6: 1 | BE6: 0 | BF6: 400000 | BG6: 80000 | BH6: -135000 | BI6: 40000 | BJ6: 1845000 | BK6: 0 | BL6: 0 | BM6: 0 | BN6: 550000 | BO6: 0 | BP6: 0 | BQ6: 0 | BR6: 500000 | BS6: 900000 | BT6: 1350000 | BU6: 4047220 | BV6: 987580 | BY6: 25529800 | BZ6: 777650 | CA6: 552980 | CD6: 24199170
A7: علیرضا چکوری | E7: 156 | F7: 542 | G7: 698 | H7: 0.6321 | I7: 0.6321 | J7: 0 | K7: 0 | L7: 0 | M7: 0 | N7: 0 | O7: 0 | P7: 0 | Q7: 0 | R7: 0 | S7: 0 | T7: 0 | U7: 0 | V7: 1 | W7: 0 | X7: 0 | Y7: 165054 | Z7: 0 | AB7: 18000 | AC7: 11500 | AD7: 1500 | AE7: 1 | AF7: 12000 | AG7: 25000 | AH7: 20000 | AI7: -15000 | AJ7: 20000 | AK7: 45000 | AL7: 35000 | AM7: 25000 | AN7: -15000 | AO7: 25000 | AP7: 20000 | AQ7: 15000 | AR7: -15000 | AS7: 100000 | AT7: 300000 | AU7: 450000 | AV7: 20 | AW7: 100000 | AY7: علیرضا چکوری | AZ7: 2808000 | BA7: 6233000 | BB7: 5714816.1 | BC7: 1047000 | BD7: 0.6321 | BE7: 0 | BF7: 0 | BG7: 0 | BH7: 0 | BI7: 0 | BJ7: 0 | BK7: 0 | BL7: 0 | BM7: 0 | BN7: 0 | BO7: 0 | BP7: 0 | BQ7: 0 | BR7: 100000 | BS7: 0 | BT7: 0 | BU7: 3301080 | BV7: 0 | BY7: 7675223.957 | BZ7: 777650 | CA7: 0 | CD7: 6897573.957
A8: حسین قاسمی | E8: 101 | F8: 747 | G8: 848 | H8: 0.885 | I8: 0.885 | J8: 41 | K8: 0 | L8: 7 | M8: 2 | N8: 29 | O8: 0 | P8: 0 | Q8: 0 | R8: 17 | S8: 0 | T8: 0 | U8: 0 | V8: 0 | W8: 0 | X8: 0 | Y8: 152075 | Z8: 0 | AB8: 18000 | AC8: 11500 | AD8: 4200 | AE8: 1 | AF8: 12000 | AG8: 25000 | AH8: 20000 | AI8: -15000 | AJ8: 20000 | AK8: 45000 | AL8: 35000 | AM8: 25000 | AN8: -15000 | AO8: 25000 | AP8: 20000 | AQ8: 15000 | AR8: -15000 | AS8: 100000 | AT8: 300000 | AU8: 450000 | AV8: 20 | AW8: 100000 | AY8: حسین قاسمی | AZ8: 1818000 | BA8: 8590500 | BB8: 9211522.5 | BC8: 3561600 | BD8: 0.885 | BE8: 0 | BF8: 1025000 | BG8: 0 | BH8: -105000 | BI8: 40000 | BJ8: 1305000 | BK8: 0 | BL8: 0 | BM8: 0 | BN8: 425000 | BO8: 0 | BP8: 0 | BQ8: 0 | BR8: 0 | BS8: 0 | BT8: 0 | BU8: 3041500 | BV8: 0 | BY8: 17035713.41 | BZ8: 777650 | CA8: 0 | CB8: 2000000 | CD8: 14258063.41 | CI8: 1
A9: حامد میرشاه مرادی | E9: 168 | F9: 747 | G9: 915 | H9: 0.9519 | I9: 1 | J9: 41 | K9: 1 | L9: 1 | M9: 0 | N9: 32 | O9: 0 | P9: 0 | Q9: 0 | R9: 6 | S9: 0 | T9: 0 | U9: 0 | V9: 0 | W9: 0 | X9: 2 | Y9: 219271 | Z9: 1.7385 | AB9: 18000 | AC9: 11500 | AD9: 4400 | AE9: 1 | AF9: 12000 | AG9: 25000 | AH9: 20000 | AI9: -15000 | AJ9: 20000 | AK9: 45000 | AL9: 35000 | AM9: 25000 | AN9: -15000 | AO9: 25000 | AP9: 20000 | AQ9: 15000 | AR9: -15000 | AS9: 100000 | AT9: 300000 | AU9: 450000 | AV9: 20 | AW9: 100000 | AY9: حامد میرشاه مرادی | AZ9: 3024000 | BA9: 8590500 | BB9: 11614500 | BC9: 4026000 | BD9: 1 | BE9: 0 | BF9: 1025000 | BG9: 20000 | BH9: -15000 | BI9: 0 | BJ9: 1440000 | BK9: 0 | BL9: 0 | BM9: 0 | BN9: 150000 | BO9: 0 | BP9: 0 | BQ9: 0 | BR9: 0 | BS9: 0 | BT9: 900000 | BU9: 4385420 | BV9: 173850 | BY9: 23719770 | BZ9: 777650 | CA9: 371977 | CD9: 22570143
A10: پوریا شهرآشوب | E10: 85 | F10: 361 | G10: 446 | H10: 0.9484 | I10: 0.9484 | J10: 16 | K10: 0 | L10: 2 | M10: 0 | N10: 22 | O10: 0 | P10: 0 | Q10: 0 | R10: 17 | S10: 0 | T10: 0 | U10: 0 | V10: 0 | W10: 1 | X10: 1 | Y10: 93829 | Z10: 0 | AB10: 18000 | AC10: 11500 | AD10: 10000 | AE10: 1 | AF10: 12000 | AG10: 25000 | AH10: 20000 | AI10: -15000 | AJ10: 20000 | AK10: 45000 | AL10: 35000 | AM10: 25000 | AN10: -15000 | AO10: 25000 | AP10: 20000 | AQ10: 15000 | AR10: -15000 | AS10: 100000 | AT10: 300000 | AU10: 450000 | AV10: 20 | AW10: 100000 | AY10: پوریا شهرآشوب | AZ10: 1530000 | BA10: 4151500 | BB10: 5388334.6 | BC10: 4460000 | BD10: 0.9484 | BE10: 0 | BF10: 400000 | BG10: 0 | BH10: -30000 | BI10: 0 | BJ10: 990000 | BK10: 0 | BL10: 0 | BM10: 0 | BN10: 425000 | BO10: 0 | BP10: 0 | BQ10: 0 | BR10: 0 | BS10: 300000 | BT10: 450000 | BU10: 1876580 | BV10: 0 | BY10: 13751740.53 | BZ10: 777650 | CA10: 0 | CD10: 12974090.53
A11: بهمن طهماسبی | E11: 81 | F11: 456 | G11: 537 | H11: 0.9466 | I11: 0.9466 | J11: 64 | K11: 0 | L11: 14 | M11: 0 | N11: 18 | O11: 0 | P11: 0 | Q11: 0 | R11: 10 | S11: 0 | T11: 0 | U11: 0 | V11: 1 | W11: 0 | X11: 1 | Y11: 104787 | Z11: 0 | AB11: 18000 | AC11: 11500 | AD11: 8400 | AE11: 1 | AF11: 12000 | AG11: 25000 | AH11: 20000 | AI11: -15000 | AJ11: 20000 | AK11: 45000 | AL11: 35000 | AM11: 25000 | AN11: -15000 | AO11: 25000 | AP11: 20000 | AQ11: 15000 | AR11: -15000 | AS11: 100000 | AT11: 300000 | AU11: 450000 | AV11: 20 | AW11: 100000 | AY11: بهمن طهماسبی | AZ11: 1458000 | BA11: 5244000 | BB11: 6344113.2 | BC11: 4510800 | BD11: 0.9466 | BE11: 0 | BF11: 1600000 | BG11: 0 | BH11: -210000 | BI11: 0 | BJ11: 810000 | BK11: 0 | BL11: 0 | BM11: 0 | BN11: 250000 | BO11: 0 | BP11: 0 | BQ11: 0 | BR11: 100000 | BS11: 0 | BT11: 450000 | BU11: 2095740 | BV11: 0 | BY11: 15371000.84 | BZ11: 777650 | CA11: 0 | CC11: 3000000 | CD11: 11593350.84
A12: مهران غریبی | E12: 159 | F12: 720 | G12: 879 | H12: 0.9079 | I12: 0.9079 | J12: 54 | K12: 0 | L12: 6 | M12: 0 | N12: 44 | O12: 0 | P12: 0 | Q12: 0 | R12: 20 | S12: 0 | T12: 0 | U12: 0 | V12: 0 | W12: 1 | X12: 3 | Y12: 246153 | Z12: 0 | AB12: 18000 | AC12: 11500 | AD12: 4000 | AE12: 1 | AF12: 12000 | AG12: 25000 | AH12: 20000 | AI12: -15000 | AJ12: 20000 | AK12: 45000 | AL12: 35000 | AM12: 25000 | AN12: -15000 | AO12: 25000 | AP12: 20000 | AQ12: 15000 | AR12: -15000 | AS12: 100000 | AT12: 300000 | AU12: 450000 | AV12: 20 | AW12: 100000 | AY12: مهران غریبی | AZ12: 2862000 | BA12: 8280000 | BB12: 10115821.8 | BC12: 3516000 | BD12: 0.9079 | BE12: 0 | BF12: 1350000 | BG12: 0 | BH12: -90000 | BI12: 0 | BJ12: 1980000 | BK12: 0 | BL12: 0 | BM12: 0 | BN12: 500000 | BO12: 0 | BP12: 0 | BQ12: 0 | BR12: 0 | BS12: 300000 | BT12: 1350000 | BU12: 4923060 | BV12: 0 | BY12: 22689391.01 | BZ12: 777650 | CA12: 268939.1012 | CD12: 21642801.91
A13: پیمان قبادی هفشجانی | E13: 153 | F13: 677 | G13: 830 | H13: 0.6315 | I13: 0.6315 | J13: 20 | K13: 0 | L13: 13 | M13: 2 | N13: 46 | O13: 0 | P13: 0 | Q13: 0 | R13: 15 | S13: 0 | T13: 0 | U13: 0 | V13: 0 | W13: 0 | X13: 2 | Y13: 228458 | Z13: 0 | AB13: 18000 | AC13: 11500 | AD13: 4300 | AE13: 1 | AF13: 12000 | AG13: 25000 | AH13: 20000 | AI13: -15000 | AJ13: 20000 | AK13: 45000 | AL13: 35000 | AM13: 25000 | AN13: -15000 | AO13: 25000 | AP13: 20000 | AQ13: 15000 | AR13: -15000 | AS13: 100000 | AT13: 300000 | AU13: 450000 | AV13: 20 | AW13: 100000 | AY13: پیمان قبادی هفشجانی | AZ13: 2754000 | BA13: 7785500 | BB13: 6655694.25 | BC13: 3569000 | BD13: 0.6315 | BE13: 0 | BF13: 500000 | BG13: 0 | BH13: -195000 | BI13: 40000 | BJ13: 2070000 | BK13: 0 | BL13: 0 | BM13: 0 | BN13: 375000 | BO13: 0 | BP13: 0 | BQ13: 0 | BR13: 0 | BS13: 0 | BT13: 900000 | BU13: 4569160 | BV13: 0 | BY13: 14716054.42 | BZ13: 777650 | CA13: 0 | CC13: 4000000 | CD13: 9938404.419 | CI13: 2
A14: شایان قدیمی بنه کهل | E14: 127 | F14: 535 | G14: 662 | H14: 0.95 | I14: 1 | J14: 7 | K14: 2 | L14: 14 | M14: 0 | N14: 31 | O14: 0 | P14: 0 | Q14: 0 | R14: 14 | S14: 0 | T14: 0 | U14: 0 | V14: 1 | W14: 0 | X14: 0 | Y14: 152348 | Z14: 0 | AB14: 18000 | AC14: 11500 | AD14: 7600 | AE14: 1 | AF14: 12000 | AG14: 25000 | AH14: 20000 | AI14: -15000 | AJ14: 20000 | AK14: 45000 | AL14: 35000 | AM14: 25000 | AN14: -15000 | AO14: 25000 | AP14: 20000 | AQ14: 15000 | AR14: -15000 | AS14: 100000 | AT14: 300000 | AU14: 450000 | AV14: 20 | AW14: 100000 | AY14: شایان قدیمی بنه کهل | AZ14: 2286000 | BA14: 6152500 | BB14: 8438500 | BC14: 5031200 | BD14: 1 | BE14: 0 | BF14: 175000 | BG14: 40000 | BH14: -210000 | BI14: 0 | BJ14: 1395000 | BK14: 0 | BL14: 0 | BM14: 0 | BN14: 350000 | BO14: 0 | BP14: 0 | BQ14: 0 | BR14: 100000 | BS14: 0 | BT14: 0 | BU14: 3046960 | BV14: 0 | BY14: 18366660 | BZ14: 777650 | CA14: 0 | CD14: 17589010
A15: مهدی حسینی | E15: 142 | F15: 769 | G15: 911 | H15: 0.8651 | I15: 0.8651 | J15: 19 | K15: 2 | L15: 12 | M15: 1 | N15: 26 | O15: 0 | P15: 0 | Q15: 0 | R15: 21 | S15: 0 | T15: 0 | U15: 0 | V15: 1 | W15: 2 | X15: 3 | Y15: 184641 | Z15: 0 | AB15: 18000 | AC15: 11500 | AD15: 5500 | AE15: 1 | AF15: 12000 | AG15: 25000 | AH15: 20000 | AI15: -15000 | AJ15: 20000 | AK15: 45000 | AL15: 35000 | AM15: 25000 | AN15: -15000 | AO15: 25000 | AP15: 20000 | AQ15: 15000 | AR15: -15000 | AS15: 100000 | AT15: 300000 | AU15: 450000 | AV15: 20 | AW15: 100000 | AY15: مهدی حسینی | AZ15: 2556000 | BA15: 8843500 | BB15: 9861707.45 | BC15: 5010500 | BD15: 0.8651 | BE15: 0 | BF15: 475000 | BG15: 40000 | BH15: -180000 | BI15: 20000 | BJ15: 1170000 | BK15: 0 | BL15: 0 | BM15: 0 | BN15: 525000 | BO15: 0 | BP15: 0 | BQ15: 0 | BR15: 100000 | BS15: 600000 | BT15: 1350000 | BU15: 3692820 | BV15: 0 | BW15: 4000000 | BX15: 1859862 | BY15: 26518628.66 | BZ15: 777650 | CA15: 651862.8665 | CB15: 3000000 | CD15: 22089115.8
A16: علیرضا ناجی | E16: 188 | F16: 650 | G16: 838 | H16: 0.909 | I16: 0.909 | J16: 39 | K16: 0 | L16: 7 | M16: 0 | N16: 35 | O16: 0 | P16: 0 | Q16: 0 | R16: 0 | S16: 0 | T16: 0 | U16: 0 | V16: 0 | W16: 3 | X16: 0 | Y16: 228555 | Z16: 0 | AB16: 18000 | AC16: 11500 | AD16: 4500 | AE16: 1 | AF16: 12000 | AG16: 25000 | AH16: 20000 | AI16: -15000 | AJ16: 20000 | AK16: 45000 | AL16: 35000 | AM16: 25000 | AN16: -15000 | AO16: 25000 | AP16: 20000 | AQ16: 15000 | AR16: -15000 | AS16: 100000 | AT16: 300000 | AU16: 450000 | AV16: 20 | AW16: 100000 | AY16: علیرضا ناجی | AZ16: 3384000 | BA16: 7475000 | BB16: 9870831 | BC16: 3771000 | BD16: 0.909 | BE16: 0 | BF16: 975000 | BG16: 0 | BH16: -105000 | BI16: 0 | BJ16: 1575000 | BK16: 0 | BL16: 0 | BM16: 0 | BN16: 0 | BO16: 0 | BP16: 0 | BQ16: 0 | BR16: 0 | BS16: 900000 | BT16: 0 | BU16: 4571100 | BV16: 0 | BY16: 20316524.38 | BZ16: 777650 | CA16: 31652.4379 | CC16: 5000000 | CD16: 14507221.94 | CI16: 1
CA17: 0 | CD17: =SUM(CD4:CD16) -> 216565969.8
CA18: 0
CA19: 0 | CD19: =SUM(CD4:CD17) -> 433131939.6
CA20: 0
CA21: 0
CA22: 0
CA23: 0
CA24: 0
CA25: 0
CA26: 0
CA27: 0
CA28: 0
CA29: 0
CA30: 0
CA31: 0
CA32: 0
CA33: 0
CA34: 0
CA35: 0
CA36: 0
CA37: 0
CA38: 0
CA39: 0
CA40: 0
CA41: 0
CA42: 0
CA43: 0
CA44: 0
CA45: 0
CA46: 0
CA47: 0
CA48: 0
CA49: 0
CA50: 0
CA51: 0
CA52: 0
CA53: 0
CA54: 0
CA55: 0
CA56: 0
CA57: 0
CA58: 0
CA59: 0
CA60: 0
CA61: 0
CA62: 0
CA63: 0
CA64: 0
CA65: 0
CA66: 0
CA67: 0
CA68: 0
CA69: =IF((BY69-BX69)>=20000000,(BY69-20000000)*10%,0) -> 0
CA70: 0
CA71: 0
CA72: 0
CA73: 0
CA74: 0
CA75: 0
CA76: 0
CA77: 0
CA78: 0
CA79: 0

Sheet setad (hidden)
B1: محاسبات قانونی
A3: نام | B3: ساعت کارکرد | C3: اضافه کار | D3: کسر کار | E3: مرخصی ساعتی | F3: روز کارکرد | G3: مرخصی استحقاقی | H3: مرخصی استعلاجی | I3: مرخصی بدون حقوق | J3: حقوق پایه قانونی 31 روز | K3: مبلغ توافقی ماهانه | L3: مبلغ ساعتی | M3: مبلغ اضافه کاری | N3: حق مسکن | O3: بن کارگری | P3: حق اولاد | Q3: حق ماموریت | R3: کمک هزینه پوشاک | S3: ایاب و ذهاب | T3: جمع حقوق و مزایا مشمول مالیات | U3: جمع حقوق و مزایا مشمول بیمه | V3: بیمه سهم کارگر | W3: مساعده | X3: اقسات | Y3: مالیات | Z3: خالص قابل پرداخت
A5: محمد جواد مرعشی | B5: 0 | C5: 0 | F5: 31 | I5: 0 | J5: 9609287 | K5: 30000000 | L5: 0 | M5: 0 | N5: 400000 | O5: 1100000 | V5: 777650 | Y5: 0
A6: پدیدار | B6: 0 | C6: 0 | F6: 31 | I6: 0 | J6: 9609287 | K6: 50000000 | L6: 0 | M6: 0 | N6: 400000 | O6: 1100000 | V6: 777650 | Y6: 0
A7: سحر خاکسار | B7: 222 | C7: =B7-192 -> 30 | F7: 31 | I7: 0 | J7: 9609287 | K7: 18000000 | L7: =K7/192 -> 93750 | M7: =L7*C7 -> 2812500 | N7: 400000 | O7: 1100000 | V7: 777650 | Y7: 0
A8: سعید صحرایی | B8: 343 | C8: 151 | F8: 31 | I8: 0 | J8: 9609287 | K8: 14000000 | L8: 0 | M8: =L8*C8 -> 0 | N8: 400000 | O8: 1100000 | P8: 929931 | V8: 777650 | Y8: 0
A9: مهتاش فداکار | B9: 281 | C9: 42 | F9: 31 | G9: 5 | I9: 0 | J9: 9609287 | K9: 21000000 | L9: =K9/192 -> 109375 | M9: 4593750 | N9: 400000 | O9: 1100000 | V9: 777650 | Y9: 0
A10: کبری شاه مرادی | B10: 153 | C10: 20 | F10: 21 | I10: 0 | J10: 6509517 | K10: 12000000 | L10: =K10/192 -> 62500 | M10: 1250000 | N10: 270984 | O10: 770007 | V10: 526806 | Y10: 0
A11: یوسفی | B11: 40 | C11: 0 | F11: 15 | I11: 0 | J11: 4649655 | K11: 19000000 | L11: =K11/192 -> 98958.33333 | M11: 0 | N11: 199995 | O11: 550005 | V11: 0 | Y11: 0
A12: فرزانه مشهدی | B12: 126 | C12: 0 | F12: 31 | I12: 0 | J12: ساعتی | K12: =L12*B12 -> 5328414 | L12: 42289 | M12: 0 | N12: 200012 | O12: 549984 | Y12: 0
A13: میعاد نخعی | B13: 245 | C13: 53 | F13: 27 | I13: 0 | J13: 8369379 | K13: 20000000 | L13: =K13/192 -> 104166.6667 | M13: 5520833.333 | N13: 348408 | O13: 958068 | Y13: 0
A14: نوروزی | B14: 254 | C14: 30 | F14: 31 | G14: 1 | I14: 0 | J14: 9609287 | K14: 9609287 | L14: 42289 | M14: 1268670 | N14: 400000 | O14: 1100000 | Y14: 0
A15: محمد آهنگر | B15: 0 | C15: 0 | F15: 31 | I15: 0 | J15: 9609287 | K15: 14000000 | M15: 0 | N15: 400000 | O15: 1100000 | Y15: 0
A16: مسعود علینژاد | B16: 0 | C16: 0 | F16: 31 | I16: 0 | J16: 9609287 | K16: 30000000 | M16: 0 | N16: 400000 | O16: 1100000 | W16: =SUM(5000000+750000) -> 5750000 | Y16: 0

Sheet مقایسه تیر و مرداد (hidden)
A1: تیر | E1: مرداد | I1: مرداد ویرایش 2
A2: نام | B2: مبلغ خالص پرداخت | C2: مبلغ ناخالص | E2: نام | F2: مبلغ خالص پرداخت | G2: مبلغ ناخالص | I2: نام | J2: مبلغ خالص پرداخت | K2: مبلغ ناخالص
A3: بهزاداسکندری | B3: 17559082 | C3: 18707480 | E3: بهزاداسکندری | F3: 17497878.63 | G3: 18083920.7 | I3: بهزاداسکندری | J3: =amaliati!CD4 -> 21227388 | K3: =amaliati!BY4 -> 22227820 | M3: =K3-C3 -> 3520340 | N3: 700000
A4: اکبرآهنگر | B4: 12475868 | C4: 18615020 | E4: اکبرآهنگر | F4: 11823581.8 | G4: 15601231.8 | I4: اکبرآهنگر | J4: =amaliati!CD5 -> 17079636 | K4: =amaliati!BY5 -> 20952540 | M4: =K4-C4 -> 2337520 | N4: 3500000
A5: فرشادپاشایی | B5: 10898190 | C5: 16675840 | E5: فرشادپاشایی | F5: 18035031 | G5: 18812681 | I5: فرشادپاشایی | J5: =amaliati!CD6 -> 24199170 | K5: =amaliati!BY6 -> 25529800 | M5: 8853960
A6: پدیدار | B6: 50000000 | C6: 53333333 | E6: پدیدار | F6: 50000000 | G6: 50000000 | I6: پدیدار | J6: 50000000 | K6: 50000000
A7: علیرضا چکوری | B7: 13060250 | C7: 15837900 | E7: علیرضا چکوری | F7: 15039986.45 | G7: 15817636.45 | I7: علیرضا چکوری | J7: =amaliati!CD7 -> 6897573.957 | K7: =amaliati!BY7 -> 7675223.957 | M7: -8162676.043
A8: حسین قاسمی | B8: 8287797.6 | C8: 12065447.6 | E8: حسین قاسمی | F8: 13098041.8 | G8: 15875691.8 | I8: حسین قاسمی | J8: =amaliati!CD8 -> 14258063.41 | K8: =amaliati!BY8 -> 17035713.41 | M8: 4970265.813
A9: خدیجه احمدی | B9: 5332471.2 | C9: 5733840
A10: رقیه قربانی | B10: 2550000 | C10: 2550000 | E10: رقیه قربانی | F10: 1700000 | G10: 1700000 | I10: رقیه قربانی
A11: حامد میر شاه مرادی | B11: 21122340 | C11: 22111100 | E11: حامد میر شاه مرادی | F11: 21876155.29 | G11: 22948672.55 | I11: حامد میر شاه مرادی | J11: =amaliati!#REF! ->  | K11: =amaliati!#REF! -> 
A12: پوریا شهرآشوب | B12: 12453930 | C12: 13231580 | E12: پوریا شهرآشوب | F12: 9706786.5 | G12: 10484436.5 | I12: پوریا شهرآشوب | J12: =amaliati!#REF! ->  | K12: =amaliati!#REF! ->  | N12: 3000000
A13: سعید صحرائی | B13: 10425387.1 | C13: 27447819 | E13: سعید صحرائی | I13: سعید صحرائی
A14: بهمن طهماسبی | B14: 7604115.2 | C14: 10381765.2 | E14: بهمن طهماسبی | F14: 6513591.4 | G14: 10291241.4 | I14: بهمن طهماسبی | J14: =amaliati!#REF! ->  | K14: =amaliati!#REF! -> 
A15: علیرضا برغمدی | B15: 1600000 | C15: 1600000 | E15: علیرضا برغمدی | F15: 0 | G15: 0 | I15: علیرضا برغمدی
A16: مسعود علینژاد | B16: 25326348 | C16: 30800000 | E16: مسعود علینژاد | F16: 24565000 | G16: 30000000 | I16: مسعود علینژاد | K16: 30000000
A17: مهران غریبی | B17: 16723305.91 | C17: 17778840 | E17: مهران غریبی | F17: 18000906.4 | G17: 18778556.4 | I17: مهران غریبی | J17: =amaliati!#REF! ->  | K17: =amaliati!#REF! -> 
A18: پیمان قبادی هفشجانی | B18: 12507532.31 | C18: 13285182.4 | E18: پیمان قبادی هفشجانی | F18: 12438266 | G18: 18215916 | I18: پیمان قبادی هفشجانی | J18: =amaliati!#REF! ->  | K18: =amaliati!#REF! -> 
A19: شایان قدیمی بنه کهل | B19: 12271926.71 | C19: 14378076.8 | E19: شایان قدیمی بنه کهل | F19: 13482532.05 | G19: 14260182.05 | I19: شایان قدیمی بنه کهل | J19: =amaliati!#REF! ->  | K19: =amaliati!#REF! -> 
A20: محمد آهنگر | B20: 28035407.38 | C20: 29792286.08 | E20: محمد آهنگر | I20: محمد آهنگر
A21: محمد حسینی | B21: 2000000 | C21: 2000000 | E21: محمد حسینی | F21: 0 | G21: 0 | I21: محمد حسینی
A22: محمد رضا مرادی | B22: 11898772.91 | C22: 12676423 | E22: محمد رضا مرادی | F22: 1055000 | G22: 1055000 | I22: محمد رضا مرادی
A23: سید مهدی حسینی مشتقین | B23: 11241335.11 | C23: 16518985.2 | E23: سید مهدی حسینی مشتقین | F23: 17719106.3 | G23: 21107507 | I23: سید مهدی حسینی مشتقین | J23: =amaliati!#REF! ->  | K23: =amaliati!#REF! -> 
A24: علیرضا ناجی | B24: 16233849.91 | C24: 17235000 | E24: علیرضا ناجی | F24: 20164858.08 | G24: 21047231.2 | I24: علیرضا ناجی | J24: =amaliati!#REF! ->  | K24: =amaliati!#REF! -> 
A25: طاهره نوروزی | B25: 10835636.91 | C25: 13613287 | E25: طاهره نوروزی | F25: 8100307 | G25: 10877957 | I25: طاهره نوروزی
A26: امید یل | B26: 9520249.91 | C26: 13797900 | E26: امید یل | F26: 7008369 | G26: 17786019 | I26: امید یل | J26: =amaliati!#REF! ->  | K26: =amaliati!#REF! -> 
A27: علیرضا یوسفی | B27: 16222349.91 | C27: 19000000 | E27: علیرضا یوسفی | F27: 3958320 | G27: 3958320 | I27: علیرضا یوسفی

Sheet کارمزد سرپرست (hidden)
B2: کارمزد فصل چهارم بازرسی دفتر تهران
C3: تراکنش | F3: فسخ | H3: نصب | I3: بازاریابی | J3: ورود به نمایندگی
B4: امید یل | C4: 216096 | G4: 17 | H4: 21 | I4: 450000 | J4: 2
B5: پیمان قبادی | C5: 240240 | G5: 29 | H5: 35 | I5: 0 | J5: 0
B6: حسین قاسمی | C6: 170230 | G6: 17 | H6: 23 | I6: 450000 | J6: 8
B7: علیرضا ناجی | C7: 228275 | G7: 15 | H7: 37 | I7: 2650000 | J7: 0
B8: فرشاد پاشایی | C8: 213062 | G8: 15 | H8: 60 | I8: 1600000 | J8: 0
B9: محمدرضا مرادی | C9: 118493 | G9: 8 | H9: 19 | I9: 0 | J9: 0
B10: مهران غریبی | C10: 246231 | G10: 14 | H10: 26 | I10: 400000 | J10: 4
B11: جمع نهایی | C11: =SUM(C4:C10) -> 1432627 | G11: =SUM(G4:G10) -> 115 | H11: =SUM(H4:H10) -> 221 | I11: =SUM(I4:I10) -> 5550000 | J11: =SUM(J4:J10) -> 14
B12: مبلغ | C12: =SUM(C4:C10)*20 -> 28652540 | G12: =G11*25000 -> 2875000 | H12: =SUM(H4:H10)*45000 -> 9945000 | I12: =SUM(I4:I10) -> 5550000 | J12: =J11*20000 -> 280000
B13: جمع نهایی | C13: =SUM(C12:J12) -> 47302540
B14: 0.15 | C14: =C13*30% -> 14190762
B19: کارمزد فصل چهارم بازرسی دفتر'گیلاوند
C20: تراکنش | F20: فسخ | H20: نصب | I20: بازاریابی | J20: ورود به نمایندگی
B21: اکبر آهنگر | C21: 161647 | G21: 0 | H21: 38 | I21: 500000 | J21: 0
B22: بهزاد اسکندری | C22: 135855 | G22: 0 | H22: 51 | I22: 2450000 | J22: 0
B23: بهمن طهماسبی | C23: 106368 | G23: 0 | H23: 24 | I23: 400000 | J23: 0
B24: پوریا شهرآشوب | C24: 93248 | G24: 0 | H24: 43 | I24: 700000 | J24: 0
B25: حامد میرشاه مرادی | C25: 228495 | G25: 0 | H25: 54 | I25: 3500000 | J25: 3
B26: سید مهدی حسینی | C26: 209599 | G26: 0 | H26: 53 | I26: 2800000 | J26: 1
B27: شایان قدیمی | C27: 151986 | G27: 0 | H27: 34 | I27: 950000 | J27: 1
B28: علیرضا چکوری | C28: 168694 | G28: 0 | H28: 27 | I28: 1550000 | J28: 1
B29: جمع | C29: =SUM(C21:C28) -> 1255892 | H29: =SUM(H21:H28) -> 324 | I29: =SUM(I21:I28) -> 12850000 | J29: =SUM(J21:J28) -> 6
B30: مبلغ | C30: =C29*20 -> 25117840 | H30: =H29*45000 -> 14580000 | I30: =SUM(I21:I28) -> 12850000 | J30: =J29*20000 -> 120000
B31: جمع نهایی | C31: =SUM(C30:J30) -> 52667840
B32: 0.15 | C32: =C31*30% -> 15800352

Sheet بیمه (hidden)
A1: ردیف | B1: نام و نام خانوادگی | C1: روز کارکرد | D1: هزينه بيمه اي سهم شركت | E1: حق بيمه اي سهم پرسنل | F1: جمع کل 30% بیمه | I1: دستمزد روزانه | J1: دستمزد ماهانه | K1: مزایای ماهانه مشمول | L1: مزایای ماهانه غیر مشمول
A2: 1 | B2: اکبر آهنگر | C2: 31 | D2: 2555136.01 | E2: 777650 | F2: =SUM(D2:E2) -> 3332786.01 | I2: 309977 | J2: =I2*31 -> 9609287 | K2: =SUM(400000+1100000) -> 1500000 | L2: 929931
A3: 2 | B3: فرشاد پاشایی | C3: 31 | D3: 2555136.01 | E3: 777650 | F3: 3332786.01 | I3: 309977 | J3: =I3*31 -> 9609287 | K3: =SUM(400000+1100000) -> 1500000
A4: 3 | B4: علیرضا چکوری | C4: 31 | D4: 2555136.01 | E4: 777650 | F4: 3332786.01 | I4: 309977 | J4: 9609287 | K4: 1500000 | L4: 929931
A5: 4 | B5: حسین قاسمی | C5: 31 | D5: 2555136.01 | E5: 777650 | F5: 3332786.01 | I5: 309977 | J5: 9609287 | K5: 1500000
A6: 5 | B6: حامد میرشاه مرادی | C6: 31 | D6: 2555136.01 | E6: 777650 | F6: 3332786.01 | I6: 309977 | J6: 9609287 | K6: 1500000
A7: 6 | B7: پوریا شهرآشوب | C7: 31 | D7: 2555136.01 | E7: 777650 | F7: 3332786.01 | I7: 309977 | J7: 9609287 | K7: =SUM(400000+1100000) -> 1500000
A8: 7 | B8: بهمن طهماسبی | C8: 31 | D8: 2555136.01 | E8: 777650 | F8: 3332786.01 | I8: 309977 | J8: 9609287 | K8: 1500000 | L8: 929931
A9: 8 | B9: مهران غریبی | C9: 31 | D9: 2555136.01 | E9: 777650 | F9: 3332786.01 | I9: 309977 | J9: 9609287 | K9: 1500000
A10: 9 | B10: پیمان قبادی هفشجانی | C10: 31 | D10: 2555136.01 | E10: 777650 | F10: 3332786.01 | I10: 309977 | J10: 9609287 | K10: 1500000
A11: 10 | B11: شایان قدیمی بنه کهل | C11: 31 | D11: 2555136.01 | E11: 777650 | F11: 3332786.01 | I11: 309977 | J11: 9609287 | K11: 1500000
A12: 11 | B12: امید یل | C12: 31 | D12: 2555136.01 | E12: 777650 | F12: 3332786.01 | I12: 309977 | J12: 9609287 | K12: 1500000
A13: 12 | B13: مهدی حسینی | C13: 31 | D13: 2555136.01 | E13: 777650 | F13: 3332786.01 | I13: 309977 | J13: 9609287 | K13: 1500000 | L13: 929931
A14: 13 | B14: علیرضا ناجی | C14: 31 | D14: 2555136.01 | E14: 777650 | F14: 3332786.01 | I14: 309977 | J14: 9609287 | K14: 1500000
A15: 14 | B15: محمد جواد مرعشی | C15: 31 | D15: 6900000 | E15: 2100000 | F15: =SUM(D15:E15) -> 9000000 | I15: 967742 | J15: 30000002 | K15: 1500000
A16: 15 | B16: سحر خاکسار | C16: 31 | D16: 2555136.01 | E16: 777650 | F16: 3332786.01 | I16: 309977 | J16: 9609287 | K16: 1500000
A17: 16 | B17: سعید صحرایی | C17: 31 | D17: 2555136.01 | E17: 777650 | F17: 3332786.01 | I17: 309977 | J17: 9609287 | K17: 1500000 | L17: 929931
A18: 17 | B18: مهتاش فداکار | C18: 31 | D18: 2555136.01 | E18: 777650 | F18: 3332786.01 | I18: 309977 | J18: 9609287 | K18: 1500000
A19: 18 | B19: کبری شاه مرادی | C19: 21 | D19: 1730903 | E19: 526797 | F19: 2257700 | I19: 309977 | J19: =I19*21 -> 6509517 | K19: 1040991
A20: 19 | B20: میعاد نخعی | C20: 27 | D20: 2225447 | E20: 677310 | F20: 2902757 | I20: 309977 | J20: =I20*27 -> 8369379 | K20: 1306476
A21: 20 | B21: نوروزی | C21: 31 | D21: 2555136.01 | E21: 777650 | F21: =SUM(D21:E21) -> 3332786.01 | I21: 309977 | J21: 9609287 | K21: 1500000
A22: 21 | B22: محمد آهنگر | C22: 31 | D22: 2555136.01 | E22: 777650 | F22: 3332786.01 | I22: 309977 | J22: 9609287 | K22: 1500000
C23: =SUM(C2:C22) -> 637 | D23: =SUM(D2:D22) -> 56848798.18 | E23: =SUM(E2:E22) -> 17301807 | F23: =SUM(F2:F22) -> 74150605.18 | I23: =SUM(I2:I22) -> 7167282 | J23: =SUM(J2:J22) -> 217846064 | K23: =SUM(K2:K22) -> 30847467 | L23: =SUM(L2:L22) -> 4649655

Sheet Print
J3: بهزاد اسکندری | L3: انتخاب شخص:
D7: شرکت پردازش افق درفک
G8: ماه: 4 | H8: سال مالی: 1396 | J8: =VLOOKUP($J$3,amaliati!$A$4:$CF$200,COLUMN(B4),0) -> 123 | L8: کد ملی: | M8: =VLOOKUP($J$3,amaliati!$A$4:$CF$200,COLUMN(C4),0) -> 78 | N8: کد پرسنلی: | O8: =VLOOKUP($J$3,amaliati!$A$4:$CF$200,COLUMN(D4),0) -> 57 | P8: شماره بیمه: | Q8: =J3 -> بهزاد اسکندری | R8: نام و نام خانوادگی:
D9: اطلاعات عملکردی | M9: کسورات عملکردی | P9: مزایا و درآمد
D10: تعرفه محاسباتی معمولی | I10: تعداد پایانه معمولی | J10: تعرفه محاسباتی VVIP | K10: تعداد پایانه VVIP | L10: حقوق ماهانه | M10: مبلغ | O10: عنوان | P10: مبلغ (ریال) | R10: عنوان
D11: =VLOOKUP($J$3,amaliati!$A$4:$CD$200,COLUMN(Z4)+3,0) -> 11500 | I11: =VLOOKUP($J$3,amaliati!$A$4:$CD$200,COLUMN(C4)+3,0) -> 686 | J11: =VLOOKUP($J$3,amaliati!$A$4:$CD$200,COLUMN(Y4)+3,0) -> 18000 | K11: =VLOOKUP($J$3,amaliati!$A$4:$CD$200,COLUMN(B4)+3,0) -> 129 | M11: =G19*D19 -> 90000 | O11: کسورات پشتیبانی | P11: =VLOOKUP($J$3,amaliati!$A$4:$CK$200,COLUMN(BB4),0) -> 10211000 | R11: حقوق ماهیانه
D12: تعرفه محاسباتی | J12: تعداد کل پایانه | L12: هزینه رفت و آمد | M12: =D23*E23 -> 0 | O12: کسورات نصب | P12: =VLOOKUP($J$3,amaliati!$A$4:$CK$200,COLUMN(BC4),0) -> 5053000 | R12: هزینه رفت و آمد
D13: =VLOOKUP($J$3,amaliati!$A$4:$CD$200,COLUMN(AA4)+3,0) -> 6200 | J13: =VLOOKUP($J$3,amaliati!$A$4:$CD$200,COLUMN(D4)+3,0) -> 815 | M13: =VLOOKUP($J$3,amaliati!$A$4:$CD$200,COLUMN(BZ4),0) -> 777650 | O13: حق بیمه سهم کارگر | P13: =I15 -> 96.80% | R13: بازرسی
D14: تعرفه محاسباتی | G14: تعداد بازرسی بالای 95 | I14: درصد پیشرفت | L14: بازرسی | M14: =VLOOKUP($J$3,amaliati!$A$4:$CA$200,COLUMN(CA4),0) -> 222782 | O14: مالیات بر حقوق | P14: =VLOOKUP($J$3,amaliati!$A$4:$CD$200,COLUMN(BE4),0) -> 12000 | R14: مونیتورینگ
D15: =VLOOKUP($J$3,amaliati!$A$4:$CD$200,COLUMN(AW4),0) -> 100000 | G15: =VLOOKUP($J$3,amaliati!$A$4:$CM$200,COLUMN(Z4),0) -> 14.67 | I15: =TEXT(VLOOKUP($J$3,amaliati!$A$4:$CD$200,COLUMN(H4),0),"0.00%") -> 96.80% | M15: =SUM(M11:N14) -> 1090432 | O15: جمع کل کسورات | P15: =K19*J19+I19*H19-D19*G19 -> 345000 | R15: پشتیبانی
D16: تعرفه محاسباتی | J16: تعداد | L16: مونیتورینگ | M16: اطلاعات کارکرد | P16: =VLOOKUP($J$3,amaliati!$A$4:$CD$200,COLUMN(BI4),0) -> 0 | R16: ورود به نمایندگی
D17: =VLOOKUP($J$3,amaliati!$A$4:$CD$200,COLUMN(AF4),0) -> 12000 | J17: =VLOOKUP($J$3,amaliati!$A$4:$CK$200,COLUMN(CK4),0) -> 1 | M17: =VLOOKUP($J$3,amaliati!$A$4:$CJ$200,COLUMN(CG6),0) -> 1 | O17: مرخصی ساعتی | P17: =K23*J23+I23*H23+G23*F23-E23*D23 -> 1260000 | R17: نصب
D18: تعداد روز سوم | G18: کسر برداشت روز سوم | H18: تعرفه روز دوم | I18: تعداد روز دوم | J18: تعرفه روز اول | K18: تعداد روز اول | L18: پشتیبانی | M18: =VLOOKUP($J$3,amaliati!$A$4:$CJ$200,COLUMN(CG6)+ROW(A1),0) -> 2 | O18: روزکارکرد | P18: =K25*I25+H25*G25+F25*D25 -> 900000 | R18: بازاریابی
D19: =VLOOKUP($J$3,amaliati!$A$4:$CD$200,COLUMN(I4)+3,0) -> 6 | G19: =-VLOOKUP($J$3,amaliati!$A$4:$CD$200,COLUMN(AF4)+3,0) -> 15000 | H19: =VLOOKUP($J$3,amaliati!$A$4:$CD$200,COLUMN(AE4)+3,0) -> 20000 | I19: =VLOOKUP($J$3,amaliati!$A$4:$CD$200,COLUMN(H4)+3,0) -> 8 | J19: =VLOOKUP($J$3,amaliati!$A$4:$CD$200,COLUMN(AD4)+3,0) -> 25000 | K19: =VLOOKUP($J$3,amaliati!$A$4:$CD$200,COLUMN(G4)+3,0) -> 11 | M19: =VLOOKUP($J$3,amaliati!$A$4:$CJ$200,COLUMN(CG7)+ROW(A2),0) -> 3 | O19: مرخصی روزانه | P19: =H27*D27 -> 2529820 | R19: تراکنش
D20: تعرفه محاسباتی | H20: تعداد | L20: ورود به نمایندگی | M20: =VLOOKUP($J$3,amaliati!$A$4:$CJ$200,COLUMN(CG8)+ROW(A3),0) -> 4 | O20: مرخصی بدون حقوق | P20: =VLOOKUP($J$3,amaliati!$A$4:$CD$200,COLUMN(BW4),0) -> 0 | R20: تشویق مدیریتی
D21: =VLOOKUP($J$3,amaliati!$A$4:$CD$200,COLUMN(AJ4)+3,0) -> 25000 | H21: =VLOOKUP($J$3,amaliati!$A$4:$CD$200,COLUMN(M4),0) -> 0 | P21: =K29*J29+I29*H29+G29*F29+E29*D29 -> 450000 | R21: فسخ
D22: کسورات | E22: تعداد روز چهارم | F22: تعرفه 3 | G22: تعداد روز سوم | H22: تعرفه 2 | I22: تعداد روز دوم | J22: تعرفه 1 | K22: تعداد روز اول | L22: نصب | P22: =VLOOKUP($J$3,amaliati!$A$4:$CM$200,COLUMN(BY4),0) -> 22227820 | R22: مبلغ ناخالص عملکرد
D23: =-VLOOKUP($J$3,amaliati!$A$4:$CD$200,COLUMN(AN4),0) -> 15000 | E23: =VLOOKUP($J$3,amaliati!$A$4:$CD$200,COLUMN(Q4),0) -> 0 | F23: =VLOOKUP($J$3,amaliati!$A$4:$CD$200,COLUMN(AM4),0) -> 25000 | G23: =VLOOKUP($J$3,amaliati!$A$4:$CD$200,COLUMN(P4),0) -> 0 | H23: =VLOOKUP($J$3,amaliati!$A$4:$CD$200,COLUMN(AL4),0) -> 35000 | I23: =VLOOKUP($J$3,amaliati!$A$4:$CD$200,COLUMN(O4),0) -> 0 | J23: =VLOOKUP($J$3,amaliati!$A$4:$CD$200,COLUMN(AK4),0) -> 45000 | K23: =VLOOKUP($J$3,amaliati!$A$4:$CD$200,COLUMN(N44),0) -> 28 | N23: حسابداری
D24: تعرفه محاسباتی | F24: VVIP | G24: تعرفه محاسباتی | H24: VIP | I24: تعرفه محاسباتی | K24: معمولی | L24: بازاریابی | N24: =P22 -> 22227820 | P24: مبلغ ناخالص عملکرد
D25: =VLOOKUP($J$3,amaliati!$A$4:$CD$200,COLUMN(AU4),0) -> 450000 | F25: =VLOOKUP($J$3,amaliati!$A$4:$CD$200,COLUMN(X4),0) -> 0 | G25: =VLOOKUP($J$3,amaliati!$A$4:$CD$200,COLUMN(AT4),0) -> 300000 | H25: =VLOOKUP($J$3,amaliati!$A$4:$CD$200,COLUMN(W4),0) -> 2 | I25: =VLOOKUP($J$3,amaliati!$A$4:$CD$200,COLUMN(AS4),0) -> 100000 | K25: =VLOOKUP($J$3,amaliati!$A$4:$CD$200,COLUMN(V4),0) -> 3 | N25: =M15 -> 1090432 | P25: مجموع کسورات
D26: تعرفه محاسباتی | H26: تعداد | L26: تراکنش | N26: =VLOOKUP($J$3,amaliati!$A$4:$CF$200,COLUMN(CC4),0) -> 0 | P26: کسر مساعده با ارزیابی پرداخت شده طی دوره
D27: =VLOOKUP($J$3,amaliati!$A$4:$CD$200,COLUMN(AV4),0) -> 20 | H27: =VLOOKUP($J$3,amaliati!$A$4:$CD$200,COLUMN(Y4),0) -> 126491 | N27: =VLOOKUP($J$3,amaliati!$A$4:$CF$200,COLUMN(CB4),0) -> 0 | P27: کسر اقساط وام
D28: کسورات | E28: تعداد روز چهارم | F28: تعرفه 3 | G28: تعداد روز سوم | H28: تعرفه 2 | I28: تعداد روز دوم | J28: تعرفه 1 | K28: تعداد روز اول | L28: فسخ | N28: =VLOOKUP($J$3,amaliati!$A$4:$CL$200,COLUMN(CL4),0) -> 0 | P28: مانده از فیش قبل
D29: =VLOOKUP($J$3,amaliati!$A$4:$CD$200,COLUMN(AR4),0) -> -15000 | E29: =VLOOKUP($J$3,amaliati!$A$4:$CD$200,COLUMN(U4),0) -> 0 | F29: =VLOOKUP($J$3,amaliati!$A$4:$CD$200,COLUMN(AQ4),0) -> 15000 | G29: =VLOOKUP($J$3,amaliati!$A$4:$CD$200,COLUMN(T4),0) -> 0 | H29: =VLOOKUP($J$3,amaliati!$A$4:$CD$200,COLUMN(AP4),0) -> 20000 | I29: =VLOOKUP($J$3,amaliati!$A$4:$CD$200,COLUMN(S4),0) -> 0 | J29: =VLOOKUP($J$3,amaliati!$A$4:$CD$200,COLUMN(AO4),0) -> 25000 | K29: =VLOOKUP($J$3,amaliati!$A$4:$CD$200,COLUMN(R4),0) -> 18 | N29: =N24-N25-N26-N27-N28 -> 21137388 | P29: خالص قابل پرداخت
D35: فرم تسویه حساب
D36: اینجانب ............................................................. بابت تمامی مدت کارکرد خود تا تاریخ ........................................................ نزد شرکت پردازش افق درفک وفق قانون و مقررات قانون کار تمامی حق السعی و حق سنوات و عیدی و غیره را مستند به ماده 34 قانون کار دریافت نموده و با امضا ذیل این گواهی اعلام میدارم که از کارفرمای خود کمال رضایت را داشته و در آینده هیچگونه ادعائی نسبت به ایشان در خصوص حق و حقوق و مزایا و غیره در ایام کارکرد خود نداشته و در صورت طرح هرگونه ادعائی از طرف بنده ، وکیل یا قائم مقام قانونی من ادعای مطروحه قابلیت استماع و ترتیب اثر نخواهد داشت.
D37: محل واریز: حساب شخصی ............................................. کارت خرید حقوقی............................................ کارت هدیه.......................................... | N37: =NumberToAlpha(N29)&" ریال" -> بيست و يك ميليون و يك صد و سي و هفت هزار و سيصد و هشتاد و هشت ریال | Q37: خالص قابل پرداخت:
D38: نام و نام خانوادگی: امضا و اثر انگشت:

Sheet Print (3) (hidden)
J3: اکبر آهنگر | L3: انتخاب شخص:
D7: شرکت پردازش افق درفک
G8: ماه: 4 | H8: سال مالی: 1396 | J8: =VLOOKUP($J$3,amaliati!$A$4:$CF$200,COLUMN(B4),0) -> 0 | L8: کد ملی: | M8: =VLOOKUP($J$3,amaliati!$A$4:$CF$200,COLUMN(C4),0) -> 0 | N8: کد پرسنلی: | O8: =VLOOKUP($J$3,amaliati!$A$4:$CF$200,COLUMN(D4),0) -> 0 | P8: شماره بیمه: | Q8: =J3 -> اکبر آهنگر | R8: نام و نام خانوادگی:
D9: اطلاعات عملکردی | M9: کسورات عملکردی | P9: مزایا و درآمد
D10: تعرفه محاسباتی معمولی | I10: تعداد پایانه معمولی | J10: تعرفه محاسباتی VVIP | K10: تعداد پایانه VVIP | L10: حقوق ماهانه | M10: مبلغ | O10: عنوان | P10: مبلغ (ریال) | R10: عنوان
D11: =VLOOKUP($J$3,amaliati!$A$4:$CD$200,COLUMN(Z4)+3,0) -> 11500 | I11: =VLOOKUP($J$3,amaliati!$A$4:$CD$200,COLUMN(C4)+3,0) -> 607 | J11: =VLOOKUP($J$3,amaliati!$A$4:$CD$200,COLUMN(Y4)+3,0) -> 18000 | K11: =VLOOKUP($J$3,amaliati!$A$4:$CD$200,COLUMN(B4)+3,0) -> 129 | M11: =G19*D19 -> 120000 | O11: کسورات پشتیبانی | P11: =K11*J11+I11*D11 -> 9302500 | R11: حقوق ماهیانه
D12: تعرفه محاسباتی | J12: تعداد کل پایانه | L12: هزینه رفت و آمد | M12: =D23*E23 -> 0 | O12: کسورات نصب | P12: =J13*D13 -> 5004800 | R12: هزینه رفت و آمد
D13: =VLOOKUP($J$3,amaliati!$A$4:$CD$200,COLUMN(AA4)+3,0) -> 6800 | J13: =VLOOKUP($J$3,amaliati!$A$4:$CD$200,COLUMN(D4)+3,0) -> 736 | M13: =VLOOKUP($J$3,amaliati!$A$4:$CD$200,COLUMN(BW4)+3,0) -> 777650 | O13: حق بیمه سهم کارگر | P13: =D15*G15+I15 -> 2.797687272e+10 | R13: بازرسی
D14: تعرفه محاسباتی | G14: تعداد بازرسی بالای 95 | I14: درصد پیشرفت با حقوق ثابت | K14: درصد پیشرفت | L14: بازرسی | M14: =IF(N24>2000000,(N24-2000000)*10%,0) -> 2799825758 | O14: مالیات بر حقوق | P14: =J17*D17 -> 12000 | R14: مونیتورینگ
D15: =VLOOKUP($J$3,amaliati!$A$4:$CD$200,COLUMN(AT4)+3,0) -> 100000 | G15: =VLOOKUP($J$3,amaliati!$A$4:$CD$200,COLUMN(BS4)+3,0) -> 279680 | I15: =SUM(VLOOKUP($J$3,amaliati!$A$4:$CD$200,COLUMN(AW44)+3,0),VLOOKUP($J$3,amaliati!$A$4:$CD$200,COLUMN(AX4)+3,0))*VLOOKUP($J$3,amaliati!$A$4:$CD$200,COLUMN(E4)+3,0) -> 8872724.5 | K15: =VLOOKUP($J$3,amaliati!$A$4:$CD$200,COLUMN(E4)+3,0) -> 0.9538 | M15: =SUM(M11:N14) -> 2800723408 | O15: جمع کل کسورات | P15: =K19*J19+I19*H19-G19*D19 -> 520000 | R15: پشتیبانی
D16: تعرفه محاسباتی | J16: تعداد | L16: مونیتورینگ | P16: =H21*D21 -> 0 | R16: ورود به نمایندگی
D17: =VLOOKUP($J$3,amaliati!$A$4:$CD$200,COLUMN(AC4)+3,0) -> 12000 | J17: =VLOOKUP($J$3,amaliati!$A$4:$CD$200,COLUMN(F4)+3,0) -> 1 | P17: =K23*J23+I23*H23+G23*F23-E23*D23 -> 1125000 | R17: نصب
D18: تعداد روز سوم | G18: کسر برداشت روز سوم | H18: تعرفه روز دوم | I18: تعداد روز دوم | J18: تعرفه روز اول | K18: تعداد روز اول | L18: پشتیبانی | P18: =K25*I25+H25*G25+F25*D25 -> 1100000 | R18: بازاریابی
D19: =VLOOKUP($J$3,amaliati!$A$4:$CD$200,COLUMN(I4)+3,0) -> 8 | G19: =-VLOOKUP($J$3,amaliati!$A$4:$CD$200,COLUMN(AF4)+3,0) -> 15000 | H19: =VLOOKUP($J$3,amaliati!$A$4:$CD$200,COLUMN(AE4)+3,0) -> 20000 | I19: =VLOOKUP($J$3,amaliati!$A$4:$CD$200,COLUMN(H4)+3,0) -> 2 | J19: =VLOOKUP($J$3,amaliati!$A$4:$CD$200,COLUMN(AD4)+3,0) -> 25000 | K19: =VLOOKUP($J$3,amaliati!$A$4:$CD$200,COLUMN(G4)+3,0) -> 24 | P19: =H27*D27 -> 3195560 | R19: تراکنش
D20: تعرفه محاسباتی | H20: تعداد | L20: ورود به نمایندگی | P20: 2700000 | R20: تشویق مدیریتی
D21: =VLOOKUP($J$3,amaliati!$A$4:$CD$200,COLUMN(AG4)+3,0) -> 20000 | H21: =VLOOKUP($J$3,amaliati!$A$4:$CD$200,COLUMN(J4)+3,0) -> 0 | P21: =K29*J29+I29*H29+G29*F29-E29*D29 -> 425000 | R21: فسخ
D22: کسورات | E22: تعداد روز چهارم | F22: تعرفه 3 | G22: تعداد روز سوم | H22: تعرفه 2 | I22: تعداد روز دوم | J22: تعرفه 1 | K22: تعداد روز اول | L22: نصب | P22: =N24 -> 2.800025758e+10 | R22: مبلغ ناخالص عملکر
D23: =-VLOOKUP($J$3,amaliati!$A$4:$CD$200,COLUMN(AK4)+3,0) -> 15000 | E23: =VLOOKUP($J$3,amaliati!$A$4:$CD$200,COLUMN(N4)+3,0) -> 0 | F23: =VLOOKUP($J$3,amaliati!$A$4:$CD$200,COLUMN(AJ4)+3,0) -> 25000 | G23: =VLOOKUP($J$3,amaliati!$A$4:$CD$200,COLUMN(M4)+3,0) -> 0 | H23: =VLOOKUP($J$3,amaliati!$A$4:$CD$200,COLUMN(AL4)+3,0) -> 25000 | I23: =VLOOKUP($J$3,amaliati!$A$4:$CD$200,COLUMN(L4)+3,0) -> 0 | J23: =VLOOKUP($J$3,amaliati!$A$4:$CD$200,COLUMN(AH4)+3,0) -> 45000 | K23: =VLOOKUP($J$3,amaliati!$A$4:$CD$200,COLUMN(K4)+3,0) -> 25 | N23: حسابداری
D24: تعرفه محاسباتی | F24: VVIP | G24: تعرفه محاسباتی | H24: VIP | I24: تعرفه محاسباتی | K24: معمولی | L24: بازاریابی | N24: =SUM(P11:Q21) -> 2.800025758e+10 | P24: مبلغ ناخالص عملکرد
D25: =VLOOKUP($J$3,amaliati!$A$4:$CD$200,COLUMN(AR4)+3,0) -> 450000 | F25: =VLOOKUP($J$3,amaliati!$A$4:$CD$200,COLUMN(U4)+3,0) -> 2 | G25: =VLOOKUP($J$3,amaliati!$A$4:$CD$200,COLUMN(AQ4)+3,0) -> 300000 | H25: =VLOOKUP($J$3,amaliati!$A$4:$CD$200,COLUMN(T4)+3,0) -> 0 | I25: =VLOOKUP($J$3,amaliati!$A$4:$CD$200,COLUMN(AP4)+3,0) -> 100000 | K25: =VLOOKUP($J$3,amaliati!$A$4:$CD$200,COLUMN(S4)+3,0) -> 2 | N25: =SUM(M11:N15) -> 5601446817 | P25: مجموع کسورات
D26: تعرفه محاسباتی | H26: تعداد | L26: تراکنش | N26: =VLOOKUP($J$3,amaliati!$A$4:$CF$200,COLUMN(CB4),0) -> 3000000 | P26: کسر مساعده با ارزیابی پرداخت شده طی دوره
D27: =VLOOKUP($J$3,amaliati!$A$4:$CD$200,COLUMN(AS4)+3,0) -> 20 | H27: =VLOOKUP($J$3,amaliati!$A$4:$CD$200,COLUMN(V4)+3,0) -> 159778 | N27: =VLOOKUP($J$3,amaliati!$A$4:$CF$200,COLUMN(CA4),0) -> 95254 | P27: کسر اقساط وام
D28: کسورات | E28: تعداد روز چهارم | F28: تعرفه 3 | G28: تعداد روز سوم | H28: تعرفه 2 | I28: تعداد روز دوم | J28: تعرفه 1 | K28: تعداد روز اول | L28: فسخ | N28: =VLOOKUP($J$3,amaliati!$A$4:$CF$200,COLUMN(CD4),0) -> 17079636 | P28: مانده از فیش قبل
D29: =-VLOOKUP($J$3,amaliati!$A$4:$CD$200,COLUMN(AO4)+3,0) -> 15000 | E29: =VLOOKUP($J$3,amaliati!$A$4:$CD$200,COLUMN(R4)+3,0) -> 0 | F29: =VLOOKUP($J$3,amaliati!$A$4:$CD$200,COLUMN(AN4)+3,0) -> 15000 | G29: =VLOOKUP($J$3,amaliati!$A$4:$CD$200,COLUMN(Q4)+3,0) -> 0 | H29: =VLOOKUP($J$3,amaliati!$A$4:$CD$200,COLUMN(AM4)+3,0) -> 20000 | I29: =VLOOKUP($J$3,amaliati!$A$4:$CD$200,COLUMN(P4)+3,0) -> 0 | J29: =VLOOKUP($J$3,amaliati!$A$4:$CD$200,COLUMN(AL4)+3,0) -> 25000 | K29: =VLOOKUP($J$3,amaliati!$A$4:$CD$200,COLUMN(O4)+3,0) -> 17 | N29: =N24--N25-N26-N27-N28 -> 3.358152951e+10 | P29: خالص قابل پرداخت
D35: فرم تسویه حساب
D36: اینجانب ............................................................. بابت تمامی مدت کارکرد خود تا تاریخ ........................................................ نزد شرکت پردازش افق درفک وفق قانون و مقررات قانون کار تمامی حق السعی و حق سنوات و عیدی و غیره را مستند به ماده 34 قانون کار دریافت نموده و با امضا ذیل این گواهی اعلام میدارم که از کارفرمای خود کمال رضایت را داشته و در آینده هیچگونه ادعائی نسبت به ایشان در خصوص حق و حقوق و مزایا و غیره در ایام کارکرد خود نداشته و در صورت طرح هرگونه ادعائی از طرف بنده ، وکیل یا قائم مقام قانونی من ادعای مطروحه قابلیت استماع و ترتیب اثر نخواهد داشت.
D37: محل واریز: حساب شخصی ............................................. کارت خرید حقوقی............................................ کارت هدیه..........................................
D38: نام و نام خانوادگی: امضا و اثر انگشت:

Sheet Print (2) (hidden)
J3: اکبر آهنگر | L3: انتخاب شخص:
L7: شرکت پردازش افق درفک
G8: ماه: 4 | I8: سال مالی: 1396 | K8: 659-9854443 | L8: کد ملی: | M8: 102 | N8: کد پرسنلی: | P8: شماره بیمه: | Q8: =J3 -> اکبر آهنگر | R8: نام و نام خانوادگی:
G9: اطلاعات عملکردی | M9: کسورات عملکردی | P9: مزایا ودرآمد
G10: تعداد پایانه غیر فعال | I10: مبلغ کل | J10: مبلغ | K10: تعداد تراکنش مشمول پرداخت | L10: عنوان | M10: مبلغ | N10: عنوان | P10: مبلغ | Q10: عنوان
I11: 2709020 | J11: 20 | K11: 135451 | L11: شبکه | M11: 0 | N11: کسورات کیفیت بازرسی | O11: بازرسی | P11: 3500000 | Q11: حقوق پایه | R11: حقوق ماهیانه
G12: درصد فعال | I12: فعال | J12: درصد پیشرفت | K12: عنوان | M12: 0 | N12: عدم تحقق هفتگی | P12: 0 | Q12: حق اولاد
I13: 0 | J13: 98/.76% | K13: بازرسی دوره سوم | L13: گزارش آماری بازرسی | M13: 0 | N13: تاخیر نصب | P13: 8136000 | Q13: بازرسی دوره سوم
K14: بازرسی دوره چهارم | M14: 0 | N14: کنترل کیفی نصب | O14: بازاریابی و نصب | Q14: بازرسی دوره چهارم | R14: بازرسی
G15: مبلغ کل فعال | H15: تعداد مشمول پرداخت | I15: تعرفه محاسباتی | J15: درصد پیشرفت | K15: عنوان | M15: 0 | N15: کنترل کیفی پروژه | Q15: مفقودی
G16: 8136000 | H16: 452 | I16: 18000 | J16: 98/.76% | K16: بازرسی دوره سوم | L16: درآمد بازرسی | M16: 0 | N16: تاخیر پشتیبانی | P16: 450000 | Q16: بازاریابی پوز | R16: بازاریابی ونصب
K17: بازرسی دوره چهارم | M17: 0 | N17: کنترل کیفی پشتیبانی | O17: پشتیبانی و پروژه | P17: 1120000 | Q17: نصب
G18: فعالسازی | I18: هفتگی | J18: کنترل کیفی | K18: عنوان | M18: 0 | N18: کنترل کیفی پروژه | P18: 2709020 | Q18: کارمزد تراکنش | R18: شبکه
G19: 0 | I19: 0 | J19: 0 | K19: بازرسی دوره سوم | L19: کسورات بازرسی | M19: 0 | N19: تاخیر | Q19: پروژه | R19: پروژه
G20: 0 | I20: 0 | J20: 0 | K20: بازرسی دوره چهارم | M20: 0 | N20: تاخیر متوالی | P20: 2700000 | Q20: تشویقی مدیریتی | R20: تشویقی
G21: کنترل کیفی | H21: تعرفه محاسباتی | I21: تاخیر | J21: تعداد | K21: عنوان | M21: 0 | N21: غیبت | O21: عمومی و انضباطی | P21: 5000000 | Q21: طرح انگیزشی
J22: 1 | K22: بازاریابی | L22: بازاریابی و نصب | M22: 0 | N22: مرخصی بدون حقوق | P22: ع مزایا و درآمد | R22: مجمو
H23: 40000 | J23: 28 | K23: نصب | M23: 0 | N23: عمومی | P23: 3500000 | Q23: انه | R23: حقوق ماه
G24: کنترل کیفی | I24: تاخیر | J24: تعداد | K24: عنوان | M24: 777650 | N24: بیمه سهم کارمند | O24: قانونی | P24: 8136000 | R24: بازرسی
G25: 0 | I25: 0 | J25: 0 | K25: پروژه | M25: 361502 | N25: مالیات | P25: 1570000 | Q25: صب | R25: بازاریابی و ن
M26: 3615020
G27: کنترل کیفی | I27: تاخیر | J27: تعداد | K27: عنوان | N27: مجموع کسورات | P27: 2709020 | Q27: شبکه
G28: 0 | I28: 0 | J28: 0 | K28: کسورات پشتیبانی | M28: 0 | N28: بازرسی | P28: 0 | Q28: پروژه
G29: تعداد روز سهم کارمند | I29: تعداد روز سهم کارفرما | J29: تعداد روز بیمه | K29: عنوان | M29: 0 | N29: بازاریابی و نصب | P29: 7700000 | Q29: تشویقی
G30: 0 | I30: 31 | J30: 31 | K30: بیمه | M30: 0 | N30: پشتیبانی و پروژه | P30: 23615020 | Q30: مبلغ ناخالص عملکرد
G31: قیمت | I31: تعداد تعرفه محاسباتی | K31: عنوان | M31: 0 | N31: عمومی و انضباطی | P31: 2555136 | Q31: بیمه سهم کارفرما
G32: 0 | K32: غیبت | M32: 1139152 | N32: قانونی | P32: 26170156 | Q32: مجموع هزینه ای شرکت
G33: تعرفه محاسباتی | H33: تاخیر متوالی | I33: قیمت | J33: تعرفه محاسباتی | K33: تعداد | L33: عنوان | M33: 1139152 | N33: مجموع کسورات
G34: 0 | H34: 0 | J34: 0 | K34: 0 | L34: تاخیر
G35: فرم تسویه حساب | P35: حسابداری
G36: اینجانب ............................................................. بابت تمامی مدت کارکرد خود تا تاریخ ........................................................ نزد شرکت پردازش افق درفک وفق قانون و مقررات قانون کار تمامی حق السعی و حق سنوات و عیدی و غیره را مستند به ماده 34 قانون کار دریافت نموده و با امضا ذیل این گواهی اعلام میدارم که از کارفرمای خود کمال رضایت را داشته و در آینده هیچگونه ادعائی نسبت به ایشان در خصوص حق و حقوق و مزایا و غیره در ایام کارکرد خود نداشته و در صورت طرح هرگونه ادعائی از طرف بنده ، وکیل یا قائم مقام قانونی من ادعای مطروحه قابلیت استماع و ترتیب اثر نخواهد داشت. | N36: 23615020 | P36: مبلغ ناخالص عملکرد
G37: محل واریز: حساب شخصی ............................................. کارت خرید حقوقی............................................ کارت هدیه.......................................... | N37: 1139152 | P37: مجموع کسورات
G38: نام و نام خانوادگی: امضا و اثر انگشت: | N38: 2000000 | P38: کسر مساعده با ارزیابی پرداخت شده طی دوره
N39: 3000000 | P39: کسر اقساط وام
P40: مانده از فیش قبل
N41: 17475868 | P41: خالص قابل پرداخت
P42: مبلغ تائید شده جهت پرداخت
P43: مانده انتقالی به فیش بعد

Sheet Sheet1
B1: محاسبات قانونی
A3: نام | B3: ساعت کارکرد | C3: اضافه کار | D3: کسر کار | E3: مرخصی ساعتی | F3: روز کارکرد | G3: مرخصی استحقاقی | H3: مرخصی استعلاجی | I3: مرخصی بدون حقوق | J3: حقوق پایه قانونی 31 روز | K3: مبلغ توافقی ماهانه | L3: مبلغ ساعتی | M3: مبلغ اضافه کاری | N3: حق مسکن | O3: بن کارگری | P3: حق اولاد | Q3: حق ماموریت | R3: کمک هزینه پوشاک | S3: ایاب و ذهاب | T3: جمع حقوق و مزایا مشمول مالیات | U3: جمع حقوق و مزایا مشمول بیمه | V3: بیمه سهم کارگر | W3: مساعده | X3: اقسات | Y3: مالیات | Z3: خالص قابل پرداخت
A5: پدیدار | B5: 0 | C5: 0 | F5: 31 | I5: 0 | J5: 9609287 | K5: 50000000 | L5: 0 | M5: 0 | N5: 0 | O5: 0 | V5: 0 | W5: 0 | X5: 0 | Y5: 0 | Z5: =SUM(K5:U5)-SUM(V5:Y5) -> 50000000
A6: سحر خاکسار | B6: 225 | C6: =B6-192 -> 33 | F6: 31 | I6: 0 | J6: 9609287 | K6: 18000000 | L6: =K6/192 -> 93750 | M6: =L6*C6 -> 3093750 | V6: 777650 | Y6: 0 | Z6: =SUM(K6:U6)-SUM(V6:Y6) -> 20409850
A7: سعید صحرایی | B7: 253 | C7: 61 | F7: 31 | G7: 3 | I7: 0 | J7: 9609287 | K7: 14000000 | L7: 0 | M7: 11429112 | P7: 929931 | V7: 777650 | W7: 8500000 | X7: 3000000 | Y7: 0 | Z7: 14081393
A8: مهتاش فداکار | B8: 150 | C8: 0 | F8: 31 | G8: 5 | I8: 0 | J8: 9609287 | K8: 21000000 | L8: =K8/192 -> 109375 | M8: =L8*C8 -> 0 | V8: 777650 | Y8: 0 | Z8: 20331725
A9: کبری شاه مرادی | B9: 218 | C9: 20 | F9: 21 | I9: 0 | J9: 6509517 | K9: 12000000 | L9: =K9/192 -> 62500 | M9: 1250000 | V9: 777650 | Y9: 0 | Z9: 12534850
A10: فرزانه مشهدی | B10: 0 | C10: 0 | F10: 31 | I10: 0 | J10: ساعتی | K10: =L10*B10 -> 0 | L10: 42289 | M10: 0 | Y10: 0 | Z10: 0
A11: میعاد نخعی | B11: 221 | C11: 29 | F11: 31 | I11: 0 | J11: 8369379 | K11: 20000000 | L11: =K11/192 -> 104166.6667 | M11: 3020833.333 | V11: 777650 | Y11: 0 | Z11: 22347350
A12: نوروزی | B12: 172 | C12: 0 | F12: 31 | G12: 1 | I12: 0 | J12: 9609287 | K12: 11109287 | L12: 42289 | M12: 0 | V12: 777650 | X12: 2000000 | Y12: 0 | Z12: 8373926
A13: محمد آهنگر | B13: 0 | C13: 0 | F13: 31 | I13: 0 | J13: 9609287 | K13: 14000000 | M13: 12407696 | V13: 777650 | Y13: 0 | Z13: 25630046
A14: میثم همتی | B14: 196 | C14: 4 | F14: 20 | J14: 9609287 | K14: 16000000 | L14: =K14/192 -> 83333.33333 | M14: 333333.3333 | V14: 0 | Z14: 16416666.67
Z16: =SUM(Z5:Z14) -> 190125806.7

Sheet Sheet2
B2: کارمزد فصل چهارم بازرسی دفتر تهران
C3: تراکنش | F3: فسخ | H3: نصب | I3: بازاریابی | J3: ورود به نمایندگی
B4: پیمان قبادی | C4: 228458 | G4: 15 | H4: 46 | I4: =SUM(amaliati!BT13) -> 900000 | J4: 2
B5: حسین قاسمی | C5: 152075 | G5: 17 | H5: 29 | I5: 0 | J5: 2
B6: علیرضا ناجی | C6: 228555 | G6: 0 | H6: 35 | I6: =SUM(amaliati!BS16) -> 900000
B7: فرشاد پاشایی | C7: 202361 | G7: 22 | H7: 41 | I7: =SUM(amaliati!BR6:BT6) -> 2750000 | J7: 2
B8: مهران غریبی | C8: 246153 | G8: 20 | H8: 44 | I8: =SUM(amaliati!BR12:BT12) -> 1650000
B9: جمع نهایی | G9: =SUM(G4:G8) -> 74 | H9: =SUM(H4:H8) -> 195 | J9: =SUM(J4:J8) -> 6
B10: مبلغ | C10: =SUM(C4:C8)*20 -> 21152040 | G10: =G9*25000 -> 1850000 | H10: =SUM(H4:H8)*45000 -> 8775000 | I10: =SUM(I4:I8) -> 6200000 | J10: =J9*20000 -> 120000
B11: جمع نهایی | C11: =SUM(C10:J10) -> 38097040
B12: 0.3 | C12: =C11*30% -> 11429112
B17: کارمزد فصل چهارم بازرسی دفتر'گیلاوند
C18: تراکنش | F18: فسخ | H18: نصب | I18: بازاریابی | J18: ورود به نمایندگی
B19: اکبر آهنگر | C19: 159778 | G19: 17 | H19: 25 | I19: =SUM(amaliati!BR5:BT5) -> 1100000
B20: بهزاد اسکندری | C20: 126491 | G20: 18 | H20: 28 | I20: =SUM(amaliati!BR4:BT4) -> 900000
B21: بهمن طهماسبی | C21: 104787 | G21: 10 | H21: 18 | I21: =SUM(amaliati!BR11:BT11) -> 550000
B22: پوریا شهرآشوب | C22: 93829 | G22: 17 | H22: 22 | I22: =SUM(amaliati!BR10:BT10) -> 750000
B23: حامد میرشاه مرادی | C23: 219271 | G23: 6 | H23: 32 | I23: =SUM(amaliati!BR9:BT9) -> 900000
B24: سید مهدی حسینی | C24: 184641 | G24: 21 | H24: 26 | I24: =SUM(amaliati!BR15:BT15) -> 2050000 | J24: 1
B25: شایان قدیمی | C25: 152348 | G25: 14 | H25: 31 | I25: =SUM(amaliati!BR14:BT14) -> 100000
B26: علیرضا چکوری | C26: 165054 | G26: 0 | H26: 0 | I26: =SUM(amaliati!BR7:BT7) -> 100000
B27: جمع | C27: =SUM(C19:C26) -> 1206199 | G27: =SUM(G19:G26) -> 103 | H27: =SUM(H19:H26) -> 182 | J27: =SUM(J24) -> 1
B28: مبلغ | C28: =C27*20 -> 24123980 | G28: =G27*25000 -> 2575000 | H28: =H27*45000 -> 8190000 | I28: =SUM(I19:I27) -> 6450000 | J28: =J27*20000 -> 20000
B29: جمع نهایی | C29: =SUM(C28:J28) -> 41358980
B30: 30 درصد | C30: =C29*30% -> 12407694
